[Event "45th FIDE Olympiad 2024"]
[Site "Budapest"]
[Date "2024.09.12"]
[Round "2.44"]
[White "Karacsonyi, Gellert"]
[Black "Gumularz, Szymon"]
[Result "1/2-1/2"]
[ECO "B10"]
[WhiteElo "2403"]
[BlackElo "2571"]
[Annotator "TA"]
[PlyCount "51"]
[EventDate "2024.09.05"]
[EventType "team-tourn"]
[EventCountry "HUN"]
[SourceTitle "playchess.com"]
[Source "ChessBase"]
[SourceQuality "1"]
[WhiteTeam "Hungary C"]
[BlackTeam "Poland"]
[BlackTeamCountry "POL"]
[TimeControl "40/5400+30:1800+30"]

{[%evp 50,50,0]} 1. e4 {[%emt 0:00:03]} ({Predecessor:} 1. c4 e6 2. g3 d5 3. Bg2 Nf6 4. Nf3 dxc4 5. Qa4+ Nbd7 6. Qxc4 a6 7. Qc2 c5 8. Nc3 Qc7 9. d4 b5 10. O-O Bb7 11. Bf4 Bd6 12. Bxd6 Qxd6 13. Rfd1 O-O 14. dxc5 Qxc5 15. a3 Rac8 16. Rac1 {0-1 Nepomniachtchi,I (2767)-Abdusattorov,N (2762) Saint Louis Blitz 2024 (13)}) 1... c6 {[%emt 0:00:17]} 2. Nf3 {[%emt 0:00:57]} d5 {[%emt 0:00:52]} 3. d3 {[%emt 0:00:11]} g6 {[%emt 0:00:08]} 4. e5 {[%emt 0:03:10]} c5 {[%emt 0:00:10]} 5. Bf4 {[%emt 0:06:42]} Nc6 {[%emt 0:00:45]} 6. Qd2 {[%emt 0:04:54] B10: Caro-Kann: 2 d3 and 2 c4.} Bg4 {[%emt 0:03:22]} 7. Nh4 {[%emt 0:06:05]} e6 {[%emt 0:17:37]} 8. g3 {[%emt 0:06:20]} Be7 {[%emt 0:01:17]} 9. h3 {[%emt 0:03:32]} Bh5 {[%emt 0:00:08]} 10. g4 {[%emt 0:01:22]} Bxh4 {[%emt 0:03:10]} 11. gxh5 {[%emt 0:02:29]} g5 {[%emt 0:02:15]} 12. Bh2 {[%emt 0:00:59]} f6 {[%emt 0:01:57]} 13. exf6 {[%emt 0:05:36]} Nxf6 {[%emt 0:07:22]} 14. Be2 {[%emt 0:03:01]} Rf8 {[%emt 0:14:21]} 15. O-O {[%emt 0:03:34]} Qd7 {[%emt 0:07:00]} 16. Qe3 {[%emt 0:04:02]} O-O-O {[%emt 0:06:37]} 17. Qxc5 {[%emt 0:08:02]} e5 {[%emt 0:00:35]} 18. Nc3 {[%emt 0:08:37]} Qxh3 {[%emt 0:04:10]} 19. Nb5 {[%emt 0:12:19]} Ng4 {[%emt 0:03:04]} 20. Nxa7+ {[%emt 0:03:07]} Kc7 {[%emt 0:00:21]} 21. Bxg4 {[%emt 0:00:15]} Qxg4+ {[%emt 0:00:07]} 22. Kh1 {[%emt 0:00:04]} Qf3+ {[%emt 0:04:50]} 23. Kg1 {[%emt 0:00:36]} Qg4+ {[%emt 0:07:14]} 24. Kh1 {[%emt 0:00:05]} Qf3+ {[%emt 0:00:02]} 25. Kg1 {[%emt 0:00:05]} Qg4+ {[%emt 0:05:15]} 26. Kh1 {[%emt 0:02:02]} 1/2-1/2

[Event "45th FIDE Olympiad 2024"]
[Site "Budapest"]
[Date "2024.09.12"]
[Round "2.44"]
[White "Skinner, Francis"]
[Black "Van Delden, Johan"]
[Result "1-0"]
[ECO "C45"]
[WhiteElo "1628"]
[BlackElo "1909"]
[Annotator "NA"]
[PlyCount "64"]
[EventDate "2024.09.05"]
[EventType "team-tourn"]
[EventCountry "HUN"]
[SourceTitle "playchess.com"]
[Source "ChessBase"]
[SourceQuality "1"]
[WhiteTeam "Bahamas"]
[BlackTeam "Netherlands Antilles"]
[WhiteTeamCountry "BAH"]
[BlackTeamCountry "AHO"]
[TimeControl "40/5400+30:1800+30"]

1. e4 e5 2. Nf3 Nc6 3. d4 exd4 4. Nxd4 Bc5 5. Be3 Qf6 6. c3 Bb6 7. Be2 Nge7 8. O-O a6 9. Re1 O-O 10. Na3 Nxd4 11. Bxd4 Bxd4 12. Qxd4 Qg6 13. Rad1 d6 14. Qe3 Nc6 15. Nc2 Re8 16. Bd3 Bg4 17. f3 Bd7 18. Nd4 Ne5 19. Bb1 Qh5 20. Qf2 g6 21. b3 Rad8 22. Qg3 Kf8 23. Ne2 Qh6 24. Nf4 Bc6 25. a3 b6 26. Ba2 a5 27. b4 axb4 28. axb4 Ra8 29. Bd5 Ra3 30. Bxc6 Nxc6 31. Nd5 Rc8 32. Nxc7 Ne5 1-0

[Event "45th FIDE Olympiad 2024"]
[Site "Budapest"]
[Date "2024.09.12"]
[Round "2.45"]
[White "Keinanen, Toivo"]
[Black "Suleymanli, Aydin"]
[Result "1/2-1/2"]
[ECO "E05"]
[WhiteElo "2554"]
[BlackElo "2632"]
[Annotator "TA"]
[PlyCount "60"]
[EventDate "2024.09.05"]
[EventType "team-tourn"]
[EventCountry "HUN"]
[SourceTitle "playchess.com"]
[Source "ChessBase"]
[SourceQuality "1"]
[WhiteTeam "Finland"]
[BlackTeam "Azerbaijan"]
[WhiteTeamCountry "FIN"]
[BlackTeamCountry "AZE"]
[TimeControl "40/5400+30:1800+30"]

{[%evp 21,60,19,19,19,17,19,13,3,8,16,17,0,0,0,0,0,0,0,0,0,0,0,0,0,0,0,0,0,0,0,0,0,0,0,0,0,0,0,0,0,0]} 1. d4 {[%emt 0:00:02]} Nf6 {[%emt 0:00:08]} 2. c4 {[%emt 0:00:04]} e6 {[%emt 0:00:04]} 3. g3 {[%emt 0:00:03]} d5 {[%emt 0:00:10]} 4. Bg2 {[%emt 0:00:05]} Be7 {[%emt 0:00:05]} 5. Nf3 {[%emt 0:00:04]} O-O {[%emt 0:00:09]} 6. O-O {[%emt 0:00:42]} dxc4 {[%emt 0:00:07]} 7. Ne5 {[%emt 0:00:04]} Nc6 {[%emt 0:00:05]} 8. Bxc6 {[%emt 0:00:04]} bxc6 {[%emt 0:00:04]} 9. Nxc6 {[%emt 0:00:03]} Qe8 {[%emt 0:00:06]} 10. Nxe7+ {[%emt 0:00:05]} Qxe7 {[%emt 0:00:04]} 11. Qa4 {[%emt 0:00:07]} e5 {[%emt 0:00:49] The position is equal.} 12. dxe5 {[%emt 0:00:05]} Qxe5 {[%emt 0:00:06]} 13. Nc3 {[%emt 0:00:24]} Ne4 {[%emt 0:00:45]} 14. Qxc4 {[%emt 0:00:07]} Nxc3 {[%emt 0:00:12]} 15. bxc3 {[%emt 0:00:05]} Be6 {[%emt 0:00:20]} 16. Bf4 {[%emt 0:00:10][%cal Bc1f4,Bf4e5,Be5d4,Bd4e3][%mdl 32]} Bxc4 {[%emt 0:00:29]} 17. Bxe5 {[%emt 0:00:05]} c6 {[%emt 0:03:19]} 18. Rfe1 {[%emt 0:01:42]} Rfe8 {[%emt 0:01:16]} 19. Bd4 {[%emt 0:01:49]} Bxe2 {[%emt 0:01:40]} 20. Be3 {[%emt 0:07:54]} Bf3 {[%emt 0:02:36]} 21. Bxa7 {[%emt 0:01:48]} Rxe1+ {[%emt 0:00:27]} 22. Rxe1 $11 {[%emt 0:00:02][%cal Oe1b1][%mdl 4096] Endgame. KRB-KRB} f6 {[%emt 0:00:40]} 23. Re7 {[%emt 0:01:17]} Rd8 {[%emt 0:00:35]} 24. Re1 {[%emt 0:00:13]} Ra8 {[%emt 0:00:20]} 25. Re7 {[%emt 0:03:29]} Rd8 {[%emt 0:00:10]} 26. Re1 {[%emt 0:01:23]} Ra8 {[%emt 0:00:17]} 27. Re7 {[%emt 0:00:15]} Rd8 {[%emt 0:00:22]} 28. Re1 {[%emt 0:00:06]} Ra8 {[%emt 0:00:06]} 29. Re7 {[%emt 0:00:04]} Rd8 {[%emt 0:00:09] [#] ( -> ...Rd1+)} 30. Re1 {[%emt 0:00:05]} Ra8 {[%emt 0:00:09] A rather calm draw.   Weighted Error Value: White=0.02 (flawless) /Black=0.00 (flawless) .  OK:         	White=11    	Black=16     Best:        	---       	Black=2} 1/2-1/2

[Event "45th FIDE Olympiad 2024"]
[Site "Budapest"]
[Date "2024.09.12"]
[Round "2.45"]
[White "Fancy, Stuart"]
[Black "Chinchilla, Alejandro Jose"]
[Result "1/2-1/2"]
[ECO "D00"]
[WhiteElo "1921"]
[BlackElo "2113"]
[Annotator "NA"]
[PlyCount "62"]
[EventDate "2024.09.05"]
[EventType "team-tourn"]
[EventCountry "HUN"]
[SourceTitle "playchess.com"]
[Source "ChessBase"]
[SourceQuality "1"]
[WhiteTeam "Papua New Guinea"]
[BlackTeam "Honduras"]
[WhiteTeamCountry "PNG"]
[BlackTeamCountry "HON"]
[TimeControl "40/5400+30:1800+30"]

1. Nc3 d5 2. d4 c5 3. Bg5 f6 4. Bf4 cxd4 5. Qxd4 e5 6. Qxd5 exf4 7. O-O-O Qxd5 8. Nxd5 Bd6 9. Nh3 Bxh3 10. gxh3 Nc6 11. Rg1 g6 12. Nxf6+ Nxf6 13. Rxd6 Ke7 14. Rd3 Rad8 15. Rb3 Rd7 16. h4 Rhd8 17. Rd3 Ne5 18. Rxd7+ Rxd7 19. Bh3 Rd8 20. Rd1 Neg4 21. Rxd8 Kxd8 22. f3 Ne3 23. Kd2 Kc7 24. Kd3 Kd6 25. c4 Kc5 26. a3 Nxc4 27. b4+ Kd5 28. Bc8 Nd6 29. Bh3 b5 30. e4+ fxe3 31. Bg2 Ke5 1/2-1/2

[Event "45th FIDE Olympiad 2024"]
[Site "Budapest"]
[Date "2024.09.12"]
[Round "2.46"]
[White "Abasov, Nijat"]
[Black "Sipila, Vilka"]
[Result "1-0"]
[ECO "B90"]
[WhiteElo "2626"]
[BlackElo "2462"]
[Annotator "TA"]
[PlyCount "87"]
[EventDate "2024.09.05"]
[EventType "team-tourn"]
[EventCountry "HUN"]
[SourceTitle "playchess.com"]
[Source "ChessBase"]
[SourceQuality "1"]
[WhiteTeam "Azerbaijan"]
[BlackTeam "Finland"]
[WhiteTeamCountry "AZE"]
[BlackTeamCountry "FIN"]
[TimeControl "40/5400+30:1800+30"]

{[%evp 13,87,33,28,10,14,0,0,-38,-33,-44,-39,-38,-10,-24,-29,-26,-7,-29,16,-48,16,0,0,-22,31,48,63,36,40,26,39,36,50,20,23,0,0,0,20,0,0,0,0,0,0,0,0,-19,-9,-110,-10,-12,0,0,0,-106,0,0,0,0,94,93,91,69,425,443,478,460,460,444,658,672,744,729,696,678]} 1. e4 {[%emt 0:00:10]} c5 {[%emt 0:00:04]} 2. Nf3 {[%emt 0:00:05]} d6 {[%emt 0:00:03]} 3. d4 {[%emt 0:00:14]} cxd4 {[%emt 0:00:04]} 4. Nxd4 {[%emt 0:00:07]} Nf6 {[%emt 0:00:02]} 5. Nc3 {[%emt 0:00:08]} a6 {[%emt 0:00:05]} 6. Be3 {[%emt 0:00:20]} e5 {[%emt 0:00:10]} 7. Nb3 {[%emt 0:00:07]} Be6 {[%emt 0:00:06]} 8. h3 {[%emt 0:00:08]} Be7 {[%emt 0:02:45]} 9. Qf3 {[%emt 0:01:01]} O-O {[%emt 0:00:11]} 10. O-O-O {[%emt 0:00:42] The position is equal.} b5 {[%emt 0:01:43]} 11. g4 {[%emt 0:02:28]} b4 $1 {[%emt 0:00:34]} 12. Nd5 {[%emt 0:00:56]} Nxd5 {[%emt 0:00:19]} 13. exd5 {[%emt 0:00:07]} Bc8 {[%emt 0:00:10]} 14. Bd3 {[%emt 0:13:47]} a5 {[%emt 0:01:28]} 15. Nd2 {[%emt 0:08:54][%cal Oh3h4]} (15. Nc5 $5) 15... a4 {[%emt 0:00:43]} 16. Ne4 {[%emt 0:11:22] [#]} (16. Qe4 $11 f5 17. Qxb4) 16... b3 {[%emt 0:02:19]} 17. cxb3 {[%emt 0:02:05]} (17. axb3 axb3 18. cxb3 Na6 $15) 17... axb3 {[%emt 0:00:33]} 18. a3 {[%emt 0:01:40]} Qc7+ {[%emt 0:08:00]} (18... f5 $11 19. gxf5 Bxf5) 19. Kb1 $14 {[%emt 0:00:55]} Ba6 {[%emt 0:00:08] ( -> ...Bxd3+)} 20. Qe2 {[%emt 0:01:12] White is more active.} Qb7 {[%emt 0:01:22]} 21. Rc1 {[%emt 0:06:46]} Qxd5 {[%emt 0:01:28]} 22. Rhd1 {[%emt 0:00:12]} Qb7 {[%emt 0:32:31]} 23. Nc3 {[%emt 0:06:55][%cal Oc3d5]} Rc8 {[%emt 0:00:40]} 24. Qd2 {[%emt 0:12:32] [#] Be4 is the strong threat.} (24. Nd5 $5 Rxc1+ (24... Qxd5 $2 25. Rxc8+ Bxc8 26. Bxh7+ Kxh7 27. Rxd5 $18) 25. Bxc1 Bxd3+ (25... Qxd5 $2 26. Bxa6 Qc6 27. Bc4 $18) 26. Rxd3 $14) 24... Bxd3+ {[%emt 0:00:59]} 25. Qxd3 {[%emt 0:01:02]} Bf8 {[%emt 0:37:01]} 26. Qd5 {[%emt 0:17:59]} (26. Qe4 {seems wilder.} Nc6 27. Nd5 Nd8 28. Bb6) 26... Qxd5 {[%emt 0:05:55]} 27. Nxd5 {[%emt 0:00:25]} Nd7 {[%emt 0:00:22]} 28. Rd3 {[%emt 0:03:08]} Rxc1+ {[%emt 0:00:28]} 29. Kxc1 {[%emt 0:00:06]} Rb8 {[%emt 0:00:05]} 30. Kd2 {[%emt 0:00:59]} g6 {[%emt 0:00:49]} 31. Kc3 {[%emt 0:04:19]} (31. g5 $11 {keeps the balance.}) 31... e4 {[%emt 0:02:59]} ({Black should play} 31... f5 $17 {aiming for ...f4.} 32. gxf5 gxf5) 32. Rd1 $11 {[%emt 0:00:42]} f5 {[%emt 0:00:03]} 33. gxf5 {[%emt 0:01:43]} gxf5 {[%emt 0:00:04]} 34. Ba7 {[%emt 0:00:43]} (34. Bd4 $11 {remains equal.}) 34... Rb7 {[%emt 0:02:31]} (34... Bg7+ $17 35. Bd4 Bxd4+ 36. Rxd4 Kf7) 35. Bd4 {[%emt 0:00:04]} Kf7 {[%emt 0:00:32]} 36. a4 {[%emt 0:00:34][%cal Ba3a4,Ba4a5][%mdl 32]} Nb8 {[%emt 0:00:31]} (36... Nc5 $11 37. a5 Rb5 38. Bxc5 Bg7+ (38... Rxc5+ $2 39. Kb4 $18) 39. Kc4 (39. Bd4 Rc5+ 40. Kxb3 Rxd5 $11) 39... Rxc5+ 40. Kb4 Bxb2) 37. a5 $16 {[%emt 0:00:42]} Ke6 {[%emt 0:00:25]} (37... Rb5 38. Bb6 Be7 39. Kc4 Rxd5 40. Rxd5 $18 (40. Kxd5 h6 $18)) 38. Bb6 {[%emt 0:00:33]} (38. Kc4 {keeps more tension.} Nc6 39. a6 Rb8 40. Nc7+) 38... Kd7 $2 {[%emt 0:00:46][%mdl 8192] A mistake that costs the game.} (38... Nd7 $14) 39. Kxb3 $18 {[%emt 0:00:24] White is clearly winning.} Bg7 {[%emt 0:00:10]} 40. Ka3 {[%emt 0:01:39]} Kc6 {[%emt 0:00:06]} 41. b4 {[%emt 0:31:47][%cal Bb2b4,Bb4b5][%mdl 32]} Rf7 {[%emt 0:04:38]} (41... Kb5 $142 42. Ne3 Be5 43. Rd5+ (43. Nxf5 Na6 $18) 43... Kc6 44. b5+ Kd7) 42. Ka4 {[%emt 0:00:00]} f4 {[%emt 0:00:32]} 43. b5+ {[%emt 0:00:00]} Kb7 {[%emt 0:00:03]} 44. Re1 {[%emt 0:00:00] Weighted Error Value: White=0.19 (very precise) /Black=0.37.  Loses game:     	---       	Black=1      Mistake:       	White=3     	Black=6      Inaccurate:     	White=2     	Black=2      OK:         	White=9     	Black=16     Best:        	White=5     	Black=1      Strong:       	---       	Black=1} 1-0

[Event "45th FIDE Olympiad 2024"]
[Site "Budapest"]
[Date "2024.09.12"]
[Round "2.46"]
[White "Colindres, Daniel"]
[Black "McCoy, Tom"]
[Result "0-1"]
[ECO "B01"]
[WhiteElo "2079"]
[BlackElo "1883"]
[Annotator "NA"]
[PlyCount "70"]
[EventDate "2024.09.05"]
[EventType "team-tourn"]
[EventCountry "HUN"]
[SourceTitle "playchess.com"]
[Source "ChessBase"]
[SourceQuality "1"]
[WhiteTeam "Honduras"]
[BlackTeam "Papua New Guinea"]
[WhiteTeamCountry "HON"]
[BlackTeamCountry "PNG"]
[TimeControl "40/5400+30:1800+30"]

1. e4 d5 2. exd5 Qxd5 3. d4 Nc6 4. Be3 Bf5 5. c4 Qd6 6. Nc3 O-O-O 7. Nf3 Nf6 8. d5 Ne5 9. Nd4 Qd7 10. Ndb5 a6 11. Na7+ Kb8 12. Qb3 Ka8 13. O-O-O Nfg4 14. Bd4 Qd6 15. f4 Nd7 16. g3 e5 17. Bg1 exf4 18. Ncb5 axb5 19. Nxb5 Qh6 20. Qa4+ Kb8 21. Qa5 f3+ 22. Rd2 Nb6 23. d6 Bxd6 24. Bxb6 cxb6 25. Qa7+ Kc8 26. Qxb6 Qxd2+ 27. Kxd2 Bc5+ 28. Qxd8+ Rxd8+ 29. Kc3 Rd1 30. b4 Bf2 31. c5 Ne3 32. Nd6+ Kc7 33. b5 Be6 34. Ne4 Be1+ 35. Kb2 Ba5 0-1

[Event "45th FIDE Olympiad 2024"]
[Site "Budapest"]
[Date "2024.09.12"]
[Round "2.47"]
[White "Agopov, Mikael"]
[Black "Mamedov, Rauf"]
[Result "0-1"]
[ECO "B57"]
[WhiteElo "2451"]
[BlackElo "2637"]
[Annotator "TA"]
[PlyCount "64"]
[EventDate "2024.09.05"]
[EventType "team-tourn"]
[EventCountry "HUN"]
[SourceTitle "playchess.com"]
[Source "ChessBase"]
[SourceQuality "1"]
[WhiteTeam "Finland"]
[BlackTeam "Azerbaijan"]
[WhiteTeamCountry "FIN"]
[BlackTeamCountry "AZE"]
[TimeControl "40/5400+30:1800+30"]

{[%evp 12,64,28,17,31,31,32,30,31,29,45,0,21,-8,0,-1,0,0,0,-54,-73,-45,-50,-129,-92,-139,-111,-127,-122,-127,-118,-142,-148,-145,-90,-220,-237,-208,-212,-203,-161,-163,-157,-317,-268,-269,-259,-243,-150,-560,-553,-623,-441,-684,-642]} 1. e4 {[%emt 0:00:03]} c5 {[%emt 0:00:12]} 2. Nf3 {[%emt 0:00:04]} Nc6 {[%emt 0:00:03]} 3. d4 {[%emt 0:00:04]} cxd4 {[%emt 0:00:05]} 4. Nxd4 {[%emt 0:00:02]} Nf6 {[%emt 0:00:06]} 5. Nc3 {[%emt 0:00:10]} d6 {[%emt 0:00:05]} 6. Bc4 {[%emt 0:03:59]} Bd7 {[%emt 0:06:08]} 7. f3 {[%emt 0:29:58]} Nxd4 {[%emt 0:14:40]} 8. Qxd4 {[%emt 0:00:05]} g6 {[%emt 0:00:04]} 9. Be3 {[%emt 0:01:39]} Bg7 {[%emt 0:01:41] White has an edge.} 10. O-O-O {[%emt 0:00:52]} O-O {[%emt 0:00:06][%cal Of6g4]} 11. Qd2 {[%emt 0:00:04]} (11. Qd3 $5) 11... Qc7 {[%emt 0:21:16]} 12. Bb3 {[%emt 0:01:17]} a5 {[%emt 0:04:17][%cal Ba7a5,Ba5a4,Ba4a3][%mdl 32] aiming for ...a4.} 13. a4 {[%emt 0:07:55] [#]} b5 $1 {[%emt 0:00:17]} 14. axb5 {[%emt 0:04:50]} a4 {[%emt 0:02:39]} 15. b6 {[%emt 0:01:08]} (15. Bxa4 $11 Nxe4 16. fxe4 Bxc3 17. Qxc3 Qxc3 18. bxc3 Rxa4 19. b6) 15... Qb8 $1 $15 {[%emt 0:00:35]} 16. Ba2 {[%emt 0:05:26]} a3 {[%emt 0:06:49]} 17. e5 {[%emt 0:09:07]} dxe5 {[%emt 0:08:54]} 18. Ne4 {[%emt 0:00:23]} (18. b4 $142) 18... Bf5 {[%emt 0:05:00]} 19. Qb4 {[%emt 0:01:07][%csl LRa3,LRe7] And now Nxf6+ would win.} Bxe4 {[%emt 0:13:21]} 20. fxe4 {[%emt 0:00:04]} Qb7 {[%emt 0:00:25] ...e6 would now be deadly.} 21. bxa3 {[%emt 0:02:05] [#]} e6 {[%emt 0:01:33][%cal Of8c8] Dodges Bd5} 22. Rd3 {[%emt 0:08:32] [#]} Rfc8 $1 {[%emt 0:00:25]} 23. Rhd1 {[%emt 0:01:26]} (23. Qb5 $17 {is a better defense.}) 23... Bf8 $1 $19 {[%emt 0:02:51]} 24. Qb2 {[%emt 0:00:06]} Nxe4 {[%emt 0:00:55]} 25. Kb1 {[%emt 0:10:20]} (25. Qxe5 Bg7 (25... Rxa3 $2 26. Bd4 $18) (25... Bxa3+ $2 26. Rxa3 Qc6 27. Rd8+ Rxd8 28. Bh6 $18) 26. Bd5 (26. Rd7 $2 Rxc2+ 27. Kb1 Bxe5 $19) 26... exd5 27. Qxd5 Qxd5 (27... Rc6 $2 28. Qb3 $19) 28. Rxd5 Bf8 $19 (28... Rxa3 $2 29. Rd8+ Bf8 30. Rxc8 $18)) (25. Rd7 Qc6 26. R7d3 (26. Qxe5 $2 Qxc2#) (26. b7 $2 Bxa3 27. bxc8=Q+ Rxc8 $19) 26... Rab8 $19 (26... Bxa3 27. Rxa3 Rxa3 28. b7 $19)) 25... Nc5 {[%emt 0:01:40]} 26. Bxc5 {[%emt 0:10:17]} Bxc5 {[%emt 0:00:04]} 27. Rb3 $2 {[%emt 0:00:05]} (27. Rd7 $17 Qxb6 28. Qxb6 Bxb6 29. Rf1) 27... Ra6 {[%emt 0:02:47][%cal Ra6b6]} (27... Qxg2 $2 {is the wrong capture.} 28. b7 (28. Qxe5 $2 Bxb6 29. c3 Bc7 $19) 28... Bd4 29. c3 $18 (29. bxa8=R Rxa8 30. c3 Qf3 $18) (29. bxa8=Q Rxa8 30. c3 Qf3 $18) (29. bxc8=R+ Rxc8 30. c3 Qf3 $18)) 28. Qxe5 {[%emt 0:00:10]} Rxb6 {[%emt 0:00:05]} 29. a4 {[%emt 0:01:18]} Bf8 {[%emt 0:03:09][%cal Ob7g2] Threatens to win with ...Qxg2!} ({But not} 29... Qxg2 30. Rxb6 Bxb6 31. Bb3) 30. Qg5 {[%emt 0:01:58] [#]} (30. Rxb6 $17 Qxb6+ 31. Bb3) 30... Qe4 $1 {[%emt 0:00:41][%csl LRa4,LRc2] Black is clearly winning.} 31. Qd2 {[%emt 0:00:51]} (31. Rdd3 Ra6) 31... Rbc6 {[%emt 0:00:34][%cal Rc6c2]} 32. Rc1 {[%emt 0:00:14]} (32. Rd3 $142 Rxc2 (32... Qxa4 $2 33. Bb3 $19) 33. Qxc2 Rxc2 34. Kxc2) 32... Qxa4 {[%emt 0:00:10] Weighted Error Value: White=0.57/Black=0.22 (precise) .  Loses game:     	White=1     	---        Mistake:       	White=6     	---        Inaccurate:     	White=1     	Black=1      OK:         	White=9     	Black=13     Strong:       	---       	Black=3      Brilliant:      	---       	Black=1} 0-1

[Event "45th FIDE Olympiad 2024"]
[Site "Budapest"]
[Date "2024.09.12"]
[Round "2.47"]
[White "Jones, Rupert"]
[Black "Gavarrete, Joel"]
[Result "0-1"]
[ECO "B24"]
[WhiteElo "1849"]
[BlackElo "2059"]
[Annotator "NA"]
[PlyCount "180"]
[EventDate "2024.09.05"]
[EventType "team-tourn"]
[EventCountry "HUN"]
[SourceTitle "playchess.com"]
[Source "ChessBase"]
[SourceQuality "1"]
[WhiteTeam "Papua New Guinea"]
[BlackTeam "Honduras"]
[WhiteTeamCountry "PNG"]
[BlackTeamCountry "HON"]
[TimeControl "40/5400+30:1800+30"]

1. e4 c5 2. Nc3 e6 3. g3 Nc6 4. Bg2 d6 5. d3 Nf6 6. Nge2 Be7 7. O-O O-O 8. f4 a6 9. h3 Qc7 10. g4 b5 11. Ng3 Rb8 12. g5 Nd7 13. Nce2 f6 14. h4 Nb6 15. c3 d5 16. f5 dxe4 17. Bxe4 e5 18. Nh5 Bb7 19. gxf6 gxf6 20. Bh6 Rf7 21. Kh2 Kh8 22. Rg1 Bf8 23. Bxf8 Rbxf8 24. Qd2 Ne7 25. Rg4 Qd7 26. Bxb7 Qxb7 27. Rf1 Rg8 28. Rxg8+ Nxg8 29. Neg3 Rd7 30. Qe2 Qd5 31. Rd1 c4 32. d4 b4 33. Ne4 exd4 34. Rxd4 Qe5+ 35. Neg3 Rxd4 36. cxd4 Qxd4 37. Qe6 c3 38. Qf7 Qd7 39. Qb3 Qd2+ 40. Kh3 c2 41. Qf7 Qd7 42. Qxd7 Nxd7 43. Ne2 Ne7 44. Kg4 Ne5+ 45. Kf4 Nd3+ 46. Ke4 c1=Q 47. Nxc1 Nxc1 48. a3 bxa3 49. bxa3 Ne2 50. Nxf6 Ng3+ 51. Kd3 Ngxf5 52. Kc4 Nc8 53. Kb4 Nb6 54. Nxh7 Kxh7 55. Ka5 Nc4+ 56. Kxa6 Nxa3 57. Kb6 Nh6 58. Kc5 Kg7 59. h5 Kf6 60. Kb4 Nb1 61. Kc5 Ke5 62. Kc4 Nd2+ 63. Kc3 Ne4+ 64. Kc4 Kf5 65. Kd3 Ke5 66. Kc4 Kf4 67. Kd5 Ng5 68. Kc4 Ke4 69. Kc3 Kd5 70. Kb4 Ne4 71. Kb5 Nc3+ 72. Kb4 Kd4 73. Kb3 Nd5 74. Kc2 Ke3 75. Kb3 Kd3 76. Kb2 Nc7 77. Kb3 Na6 78. Kb2 Nc5 79. Ka3 Kc3 80. Ka2 Nd3 81. Ka3 Nb2 82. Ka2 Nc4 83. Kb1 Kd2 84. Ka2 Kc2 85. Ka1 Nf5 86. h6 Nd4 87. h7 Nb3+ 88. Ka2 Nc1+ 89. Ka1 Nd2 90. h8=Q Ndb3# 0-1